bitfinex/quotes_ETHUSD_20220213
["timestamp","ask_amount","ask_price","bid_price","bid_amount"]
[1644777254637,1.03866,2889.3,2889.0,1.4874497]
[1644777254638,1.59613292,2889.2,2889.0,1.4874497]
[1644777254937,0.73039292,2889.1,2889.0,1.4874497]
[1644777255143,0.73039292,2889.5,2889.0,1.7874497]
[1644777255335,0.8311473,2889.8,2889.0,1.7874497]
[1644777255336,0.73039292,2889.4,2889.0,1.4874497]
[1644777255935,0.73039292,2889.6,2889.0,1.4874497]
[1644777256136,0.73039292,2889.6,2889.2,1.05150727]
[1644777256737,0.01134797,2889.4,2889.2,1.05150727]
[1644777256942,0.73039292,2889.3,2889.2,1.05150727]
[1644777257639,0.73039292,2889.3,2889.2,0.98661131]
[1644777258045,0.73039292,2889.3,2889.2,1.28661131]
[1644777258318,0.73039292,2889.3,2889.2,0.98661131]
[1644777259519,0.73039292,2889.3,2889.2,0.98986173]
[1644777261319,4.23039292,2889.3,2889.2,0.98986173]
[1644777264044,4.23039292,2889.3,2889.2,0.00325042]
[1644777266587,4.23039292,2889.3,2889.1,0.96928812]
[1644777266787,0.73039292,2889.2,2889.1,0.96928812]
[1644777267692,0.73039292,2889.2,2889.1,1.73404193]
[1644777269846,0.73039292,2889.2,2889.1,3.03404193]
[1644777270144,0.73039292,2889.2,2889.1,1.73404193]
[1644777272745,0.73039292,2889.2,2889.1,23.67694193]
[1644777272945,0.73039292,2889.2,2889.1,25.3625419]
[1644777273145,3.51134819,2889.3,2889.2,25.78529]
[1644777273386,4.18459068,2889.3,2889.2,27.72294381]
[1644777273589,0.6582473,2890.1,2889.3,24.92]
[1644777273786,0.8646,2890.3,2889.5,20.17]
[1644777273787,1.5228473,2890.3,2889.5,20.17]
[1644777273991,1.5228473,2890.3,2889.5,20.971]
[1644777273992,0.8646,2890.3,2889.5,20.971]
[1644777274189,0.8646,2890.3,2889.6,1.86521]
[1644777274388,0.6582473,2890.5,2889.8,1.16512]
[1644777274587,6.6806,2890.7,2890.2,0.86223433]
[1644777274588,0.6582473,2890.6,2890.2,0.86223433]
[1644777274788,1.31851625,2890.5,2890.2,0.86223433]
[1644777274988,4.91994204,2890.7,2890.1,1.73028]
[1644777274989,1.31851625,2890.4,2890.1,1.73028]
[1644777275189,0.87748907,2890.2,2890.0,0.86531]
[1644777275389,0.8774807,2890.1,2890.0,1.16531]
[1644777275588,0.8774807,2890.1,2890.0,0.3]
[1644777275789,1.31851625,2890.3,2889.8,0.3]
[1644777275991,0.87742815,2890.0,2889.8,1.15959673]
[1644777276492,0.87742815,2890.1,2889.8,1.45959673]
[1644777276692,0.87742815,2890.0,2889.8,1.45959673]
[1644777277343,0.8881976,2890.1,2889.8,0.3]
[1644777277540,0.8881976,2890.1,2889.6,0.02869364]
[1644777277746,0.65806635,2889.7,2889.5,21.671]
[1644777277943,0.87742815,2890.0,2889.5,21.671]
[1644777277944,0.65806635,2889.6,2889.5,21.671]
[1644777278141,0.65806635,2889.6,2889.5,1.0]
[1644777278943,0.65806635,2889.6,2889.3,20.17]
[1644777279143,0.65806635,2889.6,2889.2,1.39008055]
[1644777279144,1.52340635,2889.6,2889.2,1.39008055]
[1644777279343,0.65806635,2889.5,2889.2,2.69008055]
[1644777279746,0.65806635,2889.5,2889.1,1.35749997]
[1644777279946,0.65806635,2889.3,2889.1,1.35749997]
[1644777280148,1.52358635,2889.2,2889.1,1.35749997]
[1644777281987,0.86552,2889.2,2889.1,1.35749997]
[1644777282388,1.52391292,2889.2,2889.1,1.35749997]
[1644777282686,1.52391292,2889.2,2889.1,1.18459997]
[1644777283086,0.65839292,2889.2,2889.1,1.18459997]
[1644777283486,0.87620507,2889.3,2889.1,1.18459997]
[1644777283487,1.53459799,2889.3,2889.1,1.18459997]
[1644777283687,3.5,2889.2,2889.1,1.18459997]
[1644777284546,4.15839292,2889.2,2889.1,1.18459997]
[1644777285137,3.5,2889.2,2889.1,1.48459997]
[1644777285337,3.5,2889.2,2889.1,1.78459997]
[1644777285741,4.15839292,2889.2,2889.1,1.78459997]
[1644777285938,4.15839292,2889.2,2889.1,0.43819997]
[1644777286238,4.15839292,2889.2,2889.1,0.13819997]
[1644777287945,4.36551,2889.2,2889.0,1.4874497]
[1644777288143,0.6586349,2889.1,2889.0,1.4874497]
[1644777288388,4.36551,2889.2,2889.0,1.4874497]
[1644777288589,5.24293815,2889.2,2889.0,1.4874497]
[1644777289088,5.25373177,2889.2,2889.0,1.4874497]
[1644777289289,4.37630362,2889.2,2889.0,1.4874497]
[1644777291285,4.36551,2889.2,2889.0,1.4874497]
[1644777291488,4.37630362,2889.2,2889.0,1.4874497]
[1644777292537,4.36551,2889.2,2889.0,1.4874497]
[1644777292739,4.37630362,2889.2,2889.0,1.4874497]
[1644777293739,0.57519001,2889.1,2889.0,1.4874497]
[1644777297591,0.57519001,2889.1,2888.8,0.99362643]
[1644777297791,0.86553,2889.0,2888.8,0.99362643]
[1644777297992,0.57519001,2888.9,2888.8,0.99362643]
[1644777298192,0.57519001,2888.9,2888.8,1.91543925]
[1644777301540,0.57519001,2888.9,2888.8,2.21543925]
[1644777301743,0.57519001,2888.9,2888.8,2.51543925]
[1644777301943,0.57519001,2888.9,2888.8,3.51543925]
[1644777302141,0.57519001,2888.9,2888.8,3.21543925]
[1644777302347,0.57519001,2888.9,2888.8,2.21543925]
[1644777302542,0.57519001,2888.9,2888.8,3.20862245]
[1644777302742,0.87631242,2889.0,2888.8,3.20862245]
[1644777302743,0.01078242,2889.0,2888.9,4.3]
[1644777303141,0.01078242,2889.0,2888.9,5.3]
[1644777303390,3.5,2889.2,2888.9,5.3]
[1644777303589,0.0107823,2889.1,2889.0,1.1729]
[1644777303790,0.0107823,2889.1,2889.0,0.1729]
[1644777304190,0.0107823,2889.1,2889.0,0.4729]
[1644777304391,0.0107823,2889.1,2889.0,0.1729]
[1644777304591,3.5,2889.2,2889.0,0.1729]
[1644777304797,3.51078218,2889.2,2889.0,4.70315875]
[1644777304995,3.51078218,2889.2,2889.1,3.38104575]
[1644777305192,3.51078218,2889.2,2889.1,4.68104575]
[1644777305691,3.5,2889.2,2889.1,4.68104575]
[1644777305991,2.85,2889.2,2889.1,4.68104575]
[1644777310446,2.85,2889.2,2889.1,5.54638575]
[1644777310648,2.85,2889.2,2889.1,4.68104575]
[1644777310895,2.85,2889.2,2889.1,25.35204575]
[1644777311694,2.85,2889.2,2889.1,26.21743575]
[1644777312093,2.85,2889.2,2889.1,26.39033575]
[1644777313799,2.85,2889.2,2889.1,26.21743575]
[1644777314198,0.92171292,2889.2,2889.1,26.21743575]
[1644777315442,0.1729,2889.9,2889.3,21.03534]
[1644777315645,6.70990815,2890.4,2889.3,21.03534]
[1644777315646,0.65868299,2890.3,2889.7,20.17]
[1644777315943,0.65868299,2890.3,2889.8,4.70765342]
[1644777316241,3.2365,2890.4,2889.8,4.70765342]
[1644777316242,0.65868299,2890.4,2889.8,5.30765342]
[1644777316541,0.65868299,2890.4,2889.8,25.47765342]
[1644777316742,0.01080189,2890.2,2889.9,0.86519]
[1644777316940,0.01080189,2890.2,2890.0,4.02943183]
[1644777317341,0.01080189,2890.2,2890.1,1.0]
[1644777317641,0.01080189,2890.2,2890.0,3.75840382]
[1644777317840,3.5,2890.3,2890.1,1.0]
[1644777318040,0.01080183,2890.3,2890.1,4.14117921]
[1644777318294,0.01080183,2890.3,2890.1,4.44117921]
[1644777318494,0.01080183,2890.3,2890.2,3.15536876]
[1644777318893,0.65868299,2890.6,2890.2,3.15536876]
[1644777319295,0.0108017,2890.4,2890.2,3.15536876]
[1644777319493,0.0108017,2890.4,2890.2,3.45536876]
[1644777319694,0.0108017,2890.4,2890.3,1.0]
[1644777319893,0.0108017,2890.4,2890.3,1.3]
[1644777320094,1.52387299,2890.7,2890.3,4.53780978]
[1644777320295,0.65868299,2890.7,2890.3,4.53780978]
[1644777320497,0.0072355,2890.5,2890.3,4.53780978]
[1644777320697,0.0072355,2890.5,2890.4,3.11900063]
[1644777320903,0.0072355,2890.5,2890.2,4.981]
[1644777321101,0.0072355,2890.5,2890.2,3.981]
[1644777321297,0.65868299,2890.7,2890.3,0.86515]
[1644777321698,0.0072355,2890.5,2890.4,3.71952954]
[1644777322142,0.0072355,2890.5,2890.4,1.3]
[1644777322344,0.0072355,2890.5,2890.3,1.86515]
[1644777322542,0.65868299,2890.8,2890.4,3.11576682]
[1644777322739,0.65868299,2890.8,2890.4,3.98086682]
[1644777322948,0.0072355,2890.6,2890.4,3.98086682]
[1644777323141,0.43682778,2890.5,2890.4,3.11576682]
[1644777323942,0.43682778,2890.5,2890.4,3.98084682]
[1644777324140,0.1729,2891.0,2890.4,0.86508]
[1644777324141,0.0113602,2890.6,2890.4,0.86508]
[1644777324341,0.43682778,2890.5,2890.3,2.5952]
[1644777324941,0.65868299,2890.7,2890.3,2.5952]
[1644777325342,0.01136027,2890.5,2890.3,2.5952]
[1644777325992,0.01136027,2890.5,2890.4,3.23713294]
[1644777326195,1.52380299,2890.9,2890.4,3.23713294]
[1644777326396,1.52380299,2890.9,2890.5,0.86512]
[1644777326591,1.52380299,2890.9,2890.4,3.23713294]
[1644777327792,1.52380299,2890.9,2890.4,0.86515]
[1644777327793,0.01135991,2890.8,2890.4,0.86515]
[1644777327992,0.6700429,2890.8,2890.4,0.86515]
[1644777328192,0.01135991,2890.8,2890.4,4.98466754]
[1644777328592,0.65868299,2890.9,2890.4,5.84975754]
[1644777328797,0.01135998,2890.7,2890.4,5.84975754]
[1644777329844,4.06512,2890.9,2890.4,4.98466754]
[1644777330043,3.62648005,2890.9,2890.4,4.98466754]
[1644777330748,3.62648005,2890.9,2890.4,1.86515]
[1644777331244,3.62648005,2890.9,2890.4,0.86515]
[1644777331448,3.62648005,2890.9,2890.4,1.86515]
[1644777331846,3.62648005,2890.9,2890.4,1.0]
[1644777332046,3.62648005,2890.9,2890.4,1.3]
[1644777332244,3.62648005,2890.9,2890.4,0.3]
[1644777332448,0.1729,2890.8,2889.9,0.1729]
[1644777332648,0.1729,2890.8,2889.8,0.01655414]
[1644777332649,0.86554,2890.4,2889.8,0.01655414]
[1644777332847,1.90381,2890.3,2889.8,0.01655414]
[1644777333050,1.90381,2890.3,2889.8,5.414e-05]
[1644777333290,1.90381,2890.3,2889.0,0.25]
[1644777333492,1.90381,2890.3,2888.8,2.13932643]
[1644777333493,2.56249299,2890.3,2888.8,2.13932643]
[1644777333691,0.86555,2889.9,2888.8,2.13932643]
[1644777333996,0.1729,2889.8,2888.8,3.77776643]
[1644777334193,0.1729,2889.8,2888.8,4.77776643]
[1644777334793,0.86556,2889.7,2888.8,3.17779643]
[1644777334996,0.86556,2889.5,2888.8,0.1729]
[1644777335395,0.1729,2889.4,2888.8,0.1729]
[1644777335794,0.1729,2889.5,2888.8,0.1729]
[1644777336197,0.86572,2889.4,2888.8,0.1729]
[1644777336795,2.0295767,2889.3,2888.8,0.1729]
[1644777337049,0.86574,2889.2,2888.8,0.1729]
[1644777337242,0.86574,2889.2,2889.0,0.01136326]
[1644777337840,0.86574,2889.2,2889.0,0.00355458]
[1644777338042,0.86572,2889.1,2889.0,0.00355458]
[1644777338247,0.86577,2888.9,2888.3,1.7729]
[1644777338444,0.86577,2888.9,2888.3,0.3]
[1644777338646,0.86577,2888.9,2888.2,1.4729]
[1644777338844,0.86577,2888.9,2888.2,0.4729]
[1644777339045,1.70466506,2888.9,2888.2,0.4729]
[1644777339348,2.57047506,2888.9,2888.2,0.1729]
[1644777339546,2.57047506,2888.9,2888.1,0.1729]
[1644777339746,0.86583,2888.7,2888.1,0.1729]
[1644777340996,0.86583,2888.7,2887.7,0.86584]
[1644777340997,3.45315598,2888.6,2887.6,5.08029934]
[1644777341195,0.86606,2888.3,2887.6,5.03029934]
[1644777341394,0.86606,2888.3,2887.7,1.0]
[1644777341594,0.86606,2888.3,2887.4,1.25]
[1644777341794,0.86606,2888.3,2887.4,1.0]
[1644777342100,3.45315598,2888.6,2887.9,0.01136483]
[1644777342295,0.86608,2888.1,2887.9,0.01136483]
[1644777343097,0.86608,2888.1,2887.2,20.17]
[1644777343295,6.40096598,2888.6,2887.9,0.01136483]
[1644777343296,0.86596,2888.3,2887.9,0.01136483]
[1644777343495,3.2776,2888.7,2887.9,0.01136483]
[1644777343895,2.7,2888.1,2887.9,0.01136483]
[1644777344196,2.7,2888.1,2887.7,1.33894]
[1644777344395,2.7,2888.1,2887.9,0.01136483]
[1644777345046,2.7,2888.1,2888.0,0.97931221]
[1644777345243,2.7,2888.1,2888.0,1.15241221]
[1644777345445,2.7,2888.1,2888.0,2.15241221]
[1644777345644,2.7,2888.1,2888.0,1.45241221]
[1644777346044,2.7,2888.1,2888.0,21.62241221]
[1644777346244,2.7,2888.1,2888.0,2.45241221]
[1644777347248,2.7,2888.1,2888.0,1.45241221]
[1644777347546,2.7,2888.1,2888.0,2.95341221]
[1644777347744,2.7,2888.1,2888.0,1.95341221]
[1644777347945,2.7,2888.1,2888.0,2.95341221]
[1644777348394,2.7,2888.1,2888.0,1.95341221]
[1644777348796,2.7,2888.1,2888.0,1.78031221]
[1644777349897,2.7,2888.1,2888.0,1.95341221]
[1644777350997,2.7,2888.1,2888.0,0.4731]
[1644777351395,2.7,2888.1,2888.0,0.1731]
[1644777351596,2.7,2888.1,2888.0,0.4731]
[1644777352056,2.7,2888.1,2888.0,0.1731]
[1644777353547,2.7,2888.1,2887.9,0.01136476]
[1644777354047,2.7,2888.1,2887.5,1.2155]
[1644777354248,2.7,2888.1,2887.9,0.01136483]
[1644777355149,2.7,2888.1,2887.4,7.47]
[1644777355348,2.7,2888.1,2887.9,0.01136483]
[1644777355548,3.44447743,2888.0,2887.9,0.01136483]
[1644777355791,4.11839306,2888.0,2887.9,0.01136483]
[1644777355992,1.54406492,2888.0,2887.9,0.01136483]
[1644777356194,1.54406492,2888.0,2887.2,0.25]
[1644777356392,0.677648,2887.9,2887.0,1.29362643]
[1644777356598,1.03925,2887.9,2887.8,0.00412835]
[1644777356793,1.54380219,2887.9,2887.8,0.00412835]
[1644777356997,1.03925,2887.9,2887.8,0.00412835]
[1644777357393,1.03925,2887.9,2887.1,0.00321075]
[1644777357596,1.03925,2887.9,2887.1,0.93911156]
[1644777357796,1.03925,2887.9,2887.7,0.0113702]
[1644777357994,1.03925,2887.9,2887.7,0.00324596]
[1644777358594,1.03925,2887.9,2887.2,0.00321075]
[1644777361049,0.00125011,2887.8,2887.2,0.00321075]
[1644777361249,0.86611,2887.7,2887.4,0.00412377]
[1644777361951,0.00125011,2887.8,2887.4,0.00412377]
[1644777362353,0.00125011,2887.8,2887.2,0.00321075]
[1644777362354,1.73361011,2887.8,2887.2,0.00321075]
[1644777362552,1.73361011,2887.8,2887.5,0.01137055]
[1644777363398,0.00125011,2887.8,2887.0,0.00321075]
[1644777363698,0.00125011,2887.8,2887.2,0.99362643]
[1644777363897,0.00125011,2887.8,2887.3,0.00321075]
[1644777364098,0.00125011,2887.8,2887.5,0.01137048]
[1644777364700,0.00125011,2887.8,2887.5,0.86593]
[1644777364899,0.00125011,2887.8,2887.6,0.3]
[1644777365100,0.00125011,2887.8,2887.5,0.00321075]
[1644777365101,0.00125011,2887.8,2887.5,0.01458123]
[1644777365701,0.00125011,2887.8,2887.5,0.31458123]
[1644777365903,0.00125011,2887.8,2887.5,0.00321075]
[1644777366101,3.566,2888.1,2887.5,0.00321075]
[1644777366102,3.56724581,2888.1,2887.5,0.00321075]
[1644777366302,3.56724581,2888.1,2887.5,0.01401237]
[1644777367151,2.70124581,2888.1,2887.5,1.73511075]
[1644777367349,2.70124581,2888.1,2887.6,0.61401256]
[1644777368349,2.70124581,2888.1,2887.6,0.30321075]
[1644777368549,2.70124581,2888.1,2887.6,0.01401269]
[1644777369151,3.56721581,2888.1,2887.6,0.01401269]
[1644777369549,3.56721581,2888.1,2887.6,0.00321075]
[1644777369749,3.56721581,2888.1,2887.6,0.01402789]
[1644777370797,0.86619,2887.9,2887.6,0.00321075]
[1644777371096,0.51251673,2887.8,2887.6,0.01081714]
[1644777371294,0.68561673,2887.8,2887.6,0.01081714]
[1644777371494,0.51251673,2887.7,2887.6,0.01081714]
[1644777371696,0.51251673,2887.8,2887.6,0.01081714]
[1644777371894,0.51251673,2887.8,2887.4,0.00321075]
[1644777372297,0.51251673,2887.8,2887.5,0.01081682]
[1644777372499,0.86623,2887.7,2887.5,0.01081682]
[1644777373099,0.51270582,2887.6,2887.4,0.00321075]
[1644777373298,0.51270582,2887.6,2887.5,0.01082998]
[1644777373499,1.7325,2887.6,2887.5,0.01082998]
[1644777373899,2.24520582,2887.6,2887.5,0.01082998]
[1644777374299,5.66976454,2887.6,2887.4,0.00321075]
[1644777374556,3.465,2887.6,2887.4,0.01083004]
[1644777374946,0.5135253,2887.5,2887.4,0.01083004]
[1644777375246,1.3797653,2887.5,2887.4,0.01083004]
[1644777375445,1.3797653,2887.5,2887.0,0.04653741]
[1644777375648,1.73253,2887.5,2887.0,0.00321075]
[1644777375844,1.73253,2887.5,2887.3,0.01083016]
[1644777375845,0.8663,2887.4,2887.3,0.01083016]
[1644777376144,0.86624,2887.5,2887.3,0.01083016]
[1644777376743,0.86624,2887.5,2887.0,0.00321075]
[1644777376946,1.02423232,2887.4,2887.3,0.00357862]
[1644777377145,1.5387869,2887.4,2887.3,0.00357862]
[1644777377348,3.2714269,2887.4,2887.3,0.00357862]
[1644777377546,2.24719458,2887.4,2887.3,0.00357862]
[1644777377947,0.00252314,2887.1,2887.0,0.00321075]
[1644777378149,0.00252314,2887.1,2886.9,0.94685687]
[1644777378150,0.86880314,2887.1,2886.9,0.94685687]
[1644777378400,0.00252314,2887.1,2886.9,0.94685687]
[1644777378601,0.00170335,2887.1,2886.9,0.94685687]
[1644777379401,0.00170335,2887.1,2886.9,0.95768893]
[1644777379603,0.00170335,2887.1,2887.0,0.94685687]
[1644777380305,0.00170335,2887.1,2887.0,0.89685687]
[1644777380502,0.00170335,2887.1,2886.9,0.01089744]
[1644777380707,0.86797335,2887.1,2886.9,0.01089744]
[1644777380903,1.73434335,2887.1,2886.9,0.01089744]
[1644777381107,1.73282,2887.0,2886.9,0.01089744]
[1644777381502,1.73282,2887.0,2886.8,0.17631075]
[1644777381702,1.73282,2887.0,2886.8,0.18720832]
[1644777382645,2.59924,2887.0,2886.8,0.17631075]
[1644777382847,1.73292,2886.9,2886.8,0.00321075]
[1644777383045,0.8664,2886.9,2886.8,0.01089763]
[1644777383846,0.8664,2886.9,2886.4,0.0174467]
[1644777384245,0.8664,2886.9,2886.7,0.01081599]
[1644777384446,3.5664,2886.9,2886.7,0.01081599]
[1644777385046,3.5664,2886.9,2886.6,0.00321075]
[1644777385246,3.5664,2886.9,2886.4,0.0174467]
[1644777385446,3.5664,2886.9,2886.7,0.01081605]
[1644777385648,7.86645637,2886.9,2886.7,0.01081605]
[1644777385905,1.73297,2886.8,2886.7,0.01081605]
[1644777386301,1.73297,2886.8,2886.4,0.0174467]
[1644777386502,1.73297,2886.8,2886.6,0.01081611]
[1644777386503,2.59948,2886.8,2886.6,0.01081611]
[1644777386703,3.4488282,2886.8,2886.6,0.01081611]
[1644777387302,1.73301,2886.7,2886.6,0.01081611]
[1644777387504,1.73301,2886.7,2886.4,0.0174467]
[1644777387805,0.86662,2886.5,2886.4,0.0174467]
[1644777389005,4.30152743,2886.5,2886.4,0.0174467]
[1644777389204,0.86662,2886.5,2886.4,0.0174467]
[1644777393499,4.25439612,2886.5,2886.4,0.0174467]
[1644777394699,0.86662,2886.5,2886.4,0.0174467]
[1644777395100,1.03972,2886.5,2886.4,0.0174467]
[1644777395299,4.44018983,2886.5,2886.4,0.0174467]
[1644777396101,4.44122524,2886.5,2886.4,0.0174467]
[1644777397946,4.75,2886.4,2886.1,0.03726476]
[1644777398148,5.56663275,2886.3,2886.2,0.00321158]
[1644777398349,5.56663275,2886.3,2885.5,0.00321158]
[1644777398350,0.1731,2886.2,2885.5,0.00321158]
[1644777398548,0.1731,2886.2,2885.3,2.1652]
[1644777398749,0.1731,2886.2,2885.9,0.04206334]
[1644777399754,4.50843932,2886.2,2885.9,0.04206334]
[1644777399953,5.37522932,2886.2,2885.9,0.04206334]
[1644777400152,0.86679,2886.1,2885.9,0.04206334]
[1644777400452,0.51500657,2886.0,2885.9,0.04206334]
[1644777401099,3.93594207,2886.0,2885.9,0.04206334]
[1644777401297,5.66949207,2886.0,2885.9,0.04206334]
[1644777401696,5.66949207,2886.0,2885.2,0.25]
[1644777401697,0.86687,2885.8,2885.2,0.25]
[1644777401898,5.26172746,2885.7,2885.1,0.1731]
[1644777402098,1.07624746,2885.5,2885.1,0.1731]
[1644777402296,1.07624746,2885.5,2885.4,0.04329692]
[1644777402695,1.94301746,2885.5,2885.4,0.04329692]
[1644777403099,1.94301746,2885.5,2885.0,0.1]
[1644777403297,1.1656941,2885.7,2885.0,0.1]
[1644777403497,1.1656941,2885.7,2885.3,0.01082332]
[1644777403899,0.86675,2885.6,2885.3,0.01082332]
[1644777404298,0.86675,2885.6,2885.0,0.96674]
[1644777404556,1.03985,2885.6,2885.3,0.01082332]
[1644777404746,0.86675,2885.6,2885.3,0.01082332]
[1644777405546,0.86675,2885.6,2885.0,0.96677]
[1644777405747,0.86675,2885.6,2885.3,0.01082332]
[1644777406346,1.03391419,2885.5,2885.3,0.01082332]
[1644777406650,0.86682,2885.4,2885.3,0.01082332]
[1644777406848,0.86682,2885.4,2885.0,0.1]
[1644777407048,0.86682,2885.4,2885.3,0.01072317]
[1644777407549,1.03391419,2885.5,2885.3,0.01072317]
[1644777407550,1.90070419,2885.5,2885.3,0.01072317]
[1644777407751,0.00125127,2885.5,2885.3,0.01072317]
[1644777407952,0.00125127,2885.5,2885.0,4.6]
[1644777408153,0.00125127,2885.5,2885.3,0.01072317]
[1644777408599,0.86803127,2885.5,2885.3,0.01072317]
[1644777409202,0.86803127,2885.5,2885.1,0.1731]
[1644777409400,0.86803127,2885.5,2885.3,0.01072317]
[1644777410402,0.86803127,2885.5,2885.1,0.1731]
[1644777410702,0.86803127,2885.5,2885.3,0.01072988]
[1644777410902,0.86803127,2885.5,2885.3,3.09093346]
[1644777411101,0.86803127,2885.5,2885.3,0.01072988]
[1644777411401,0.00124697,2885.4,2885.3,0.01072988]
[1644777411601,0.00124697,2885.4,2885.2,1.0]
[1644777411810,0.86804697,2885.4,2885.3,0.01072988]
[1644777412250,0.00124697,2885.4,2885.3,0.01072988]
[1644777412849,0.00124697,2885.4,2885.1,0.1731]
[1644777413050,0.00124697,2885.4,2885.2,0.01072995]
[1644777413952,0.00124697,2885.4,2885.1,0.17627483]
[1644777414150,0.00124697,2885.4,2885.2,0.01072957]
[1644777414950,0.86806697,2885.4,2885.2,0.01072957]
[1644777415152,0.86806697,2885.4,2885.1,0.00317483]
[1644777415451,0.86806697,2885.4,2885.2,0.01072957]
[1644777416297,0.86806697,2885.4,2885.1,0.00317483]
[1644777416498,0.86806697,2885.4,2885.2,0.00552086]
[1644777417002,0.86806697,2885.4,2885.0,0.05869569]
[1644777417198,0.86698,2885.2,2885.0,0.05869569]
[1644777418001,1.73394,2885.2,2885.0,0.05869569]
[1644777418199,0.86698,2885.2,2885.0,0.05869569]
[1644777419001,1.73408,2885.1,2885.0,0.05869569]
[1644777419200,1.73408,2885.1,2885.0,0.01538465]
[1644777419846,5.62118649,2885.1,2885.0,0.01538465]
[1644777420249,6.17240907,2885.1,2885.0,0.01538465]
[1644777420445,6.17240907,2885.1,2884.6,0.00317499]
[1644777420446,0.86721,2884.9,2884.6,0.00317499]
[1644777420648,5.33501411,2884.8,2884.4,0.001]
[1644777420846,1.04054,2884.8,2884.4,0.001]
[1644777421249,0.89619489,2884.5,2884.4,0.001]
[1644777421551,0.86725,2884.5,2884.4,0.001]
[1644777421749,0.1733,2885.0,2884.4,0.001]
[1644777421949,0.00093963,2885.1,2884.4,0.90029816]
[1644777422152,0.00093963,2885.1,2884.5,3.50317499]
[1644777422349,0.00093963,2885.1,2884.6,3.63616315]
[1644777422548,0.00093963,2885.1,2884.7,1.49929816]
[1644777422748,0.00093963,2885.1,2884.8,0.89929816]
[1644777423149,0.00093963,2885.1,2884.8,1.89929816]
[1644777423401,0.00093963,2885.1,2884.9,1.76607816]
[1644777423605,0.00093963,2885.1,2885.0,0.89929816]
[1644777423803,0.00093963,2885.1,2885.0,1.37259816]
[1644777424004,0.00093963,2885.1,2885.0,10.95302653]
[1644777425206,2.7,2885.6,2885.1,24.92]
[1644777425207,0.17261819,2885.6,2885.1,24.92]
[1644777425408,0.1733,2886.0,2885.3,25.17]
[1644777425604,0.1733,2886.0,2885.4,29.0941]
[1644777425805,0.1733,2886.0,2885.5,0.89929816]
[1644777426004,0.1733,2886.0,2885.6,0.6741]
[1644777426205,0.1733,2886.0,2885.7,1.19929816]
[1644777426406,0.1733,2886.0,2885.8,2.43984816]
[1644777426604,1.00944683,2886.5,2885.9,2.7]
[1644777426807,0.52848654,2886.4,2885.9,3.0]
[1644777427055,0.52848654,2886.4,2886.0,1.0]
[1644777427247,0.52848654,2886.4,2885.8,2.906]
[1644777427248,0.52848654,2886.4,2885.8,1.7329]
[1644777427452,0.52848654,2886.4,2885.3,0.1731]
[1644777427453,0.65868299,2886.3,2885.3,0.1731]
[1644777427647,0.65868299,2886.2,2885.1,3.51138574]
[1644777427845,0.65868299,2886.2,2885.2,0.92544551]
[1644777427846,0.86691,2886.0,2885.2,0.92544551]
[1644777428047,0.52848654,2885.9,2885.2,0.92544551]
[1644777428246,0.91645327,2885.8,2885.2,0.92544551]
[1644777428445,0.52848654,2885.7,2885.2,0.92544551]
[1644777428645,0.52848654,2885.6,2885.2,0.92544551]
[1644777428847,4.45568299,2886.3,2885.2,1.09854551]
[1644777429047,0.54210196,2886.2,2885.3,1.09854551]
[1644777429248,0.54210196,2886.2,2885.4,1.09854551]
[1644777429447,1.067256,2886.1,2885.5,0.92544551]
[1644777429648,0.54210196,2886.0,2885.6,0.92544551]
[1644777429848,0.54210196,2886.0,2885.7,0.92544551]
[1644777430052,0.54210196,2886.0,2885.4,1.63971]
[1644777430349,0.54210196,2886.0,2885.5,1.22205136]
[1644777430801,0.54210196,2886.0,2885.7,0.3]
[1644777431001,0.54210196,2886.0,2885.5,1.16656]
[1644777431203,0.54210196,2886.0,2885.7,0.3]
[1644777431502,0.54210196,2886.0,2885.5,0.3]
[1644777431703,0.54210196,2886.0,2885.7,0.3]
[1644777431900,0.54210196,2886.0,2885.4,0.00080247]
[1644777432301,1.40881196,2886.0,2885.4,0.00080247]
[1644777432501,0.54210196,2885.9,2885.4,0.00080247]
[1644777432706,0.54210196,2885.9,2885.4,0.00397697]
[1644777433003,0.54210196,2885.9,2885.5,0.92280689]
[1644777433202,0.54210196,2885.9,2885.5,1.52280689]
[1644777433403,0.54210196,2885.9,2885.6,0.92280689]
[1644777433602,0.54210196,2885.9,2885.6,0.92598139]
[1644777433804,0.54210196,2885.9,2885.6,0.92512924]
[1644777434004,0.54210196,2885.9,2885.6,0.0031745]
[1644777434202,0.54210196,2885.9,2885.4,0.00080247]
[1644777434648,1.067256,2886.1,2885.4,0.00080247]
[1644777435750,1.933936,2886.1,2885.4,0.00080247]
[1644777436549,1.933936,2886.1,2885.3,2.3429245]
[1644777436550,0.00088426,2885.9,2885.3,2.3429245]
[1644777436949,0.00088426,2885.9,2885.3,1.3429245]
[1644777437351,0.00088426,2885.9,2885.3,1.4762745]
[1644777437550,0.00088426,2885.9,2885.3,0.4762745]
[1644777438300,0.86760426,2885.9,2885.3,0.4762745]
[1644777439698,0.86760426,2885.9,2885.3,0.3031745]
[1644777440300,0.00088426,2885.9,2885.3,0.3031745]
[1644777440899,0.00088426,2885.9,2885.3,1.1698245]
[1644777441099,0.00088426,2885.9,2885.4,0.86663]
[1644777441301,0.00088139,2886.2,2885.9,0.00111225]
[1644777442350,0.00088139,2886.2,2886.0,0.3]
[1644777442749,0.00088139,2886.2,2885.9,0.30111225]
[1644777444151,0.00088139,2886.2,2885.9,0.60111225]
[1644777445054,0.00088139,2886.2,2885.9,1.46761225]
[1644777445453,0.00088139,2886.2,2885.9,2.46761225]
[1644777445900,0.00088139,2886.2,2885.9,0.60111225]
[1644777446199,0.00088139,2886.2,2885.9,1.30111225]
[1644777446398,0.00088139,2886.2,2885.9,0.30111225]
[1644777446599,0.00088139,2886.2,2885.9,1.30111225]
[1644777446798,0.83178299,2886.6,2885.9,0.30111225]
[1644777447200,0.86655,2886.4,2885.9,0.30111225]
[1644777448403,0.86655,2886.4,2885.9,0.60111225]
[1644777451254,0.00089572,2886.3,2885.9,0.60111225]
[1644777452454,0.86746572,2886.3,2885.9,0.60111225]
[1644777453607,0.00089572,2886.3,2886.0,3.15850269]
[1644777453804,0.00089572,2886.3,2886.1,1.92298785]
[1644777454003,0.00089572,2886.3,2886.2,4.51024877]
[1644777454202,0.00089572,2886.3,2886.2,1.09608785]
[1644777454407,0.00170335,2887.1,2886.3,3.2]
[1644777454604,0.00170335,2887.1,2886.5,0.86613]